Cogmind - Beta 13 @@@ ROGUE MODE // 2024.04.03 @ 14:30:47 Player: Gilvian Result: Destroyed by as-33478 with Assembled Heavy Rifle Performance ------------- Evolutions (0) 0 Regions Visited (2) 400 Robots Destroyed (13) 65 Value Destroyed (329) 329 Prototype IDs (0) 0 Alien Tech Used (0) 0 Bonus (0) 0 TOTAL SCORE: 794 Bonus ------- None Cogmind --------- Core Integrity 0/250 Matter 235/300 Energy 99/100 System Corruption 3% Temperature Cool (0) Movement Walking (190) Ox1 Location -10/Mines Parts ------- > --- POWER (1) -------- (None) > --- PROPULSION (2) --- Aluminum Leg Aluminum Leg > --- UTILITY (2) ------ Large Storage Unit Visual Processing Unit > --- WEAPON (2) ------- Autogun Mace > --- INVENTORY (15) --- Improved Treads Large Matter Pod (99) Targeting Computer Core Shielding Autogun Autogun Mining Laser Mace Peak State ------------ > --- POWER ------------ Light Ion Engine > --- PROPULSION ------- Improved Treads Improved Treads > --- UTILITY ---------- Large Storage Unit Visual Processing Unit > --- WEAPON ----------- Autogun Autogun > --- INVENTORY -------- Autogun Mining Laser Mace Mace [Rating: 12] Favorites ----------- Power Light Ion Engine Engine Light Ion Engine Propulsion Aluminum Leg Treads Improved Treads Leg Aluminum Leg Utility Large Storage Unit Storage Large Storage Unit Processor Visual Processing Unit Weapon Autogun Ballistic Gun Autogun Impact Weapon Mace Build | -11 -10 -10 ------- Run | Yrd Mat Min Slots Evolved . | . . . Power . | . . . Propulsion . | . . . Utility . | . . . Weapon . | . . . Parts Attached 17 | 4 12 1 Power 2 | 1 1 . Engine 2 | 1 1 . Core . | . . . Reactor . | . . . Propulsion 6 | 2 4 . Treads 2 | . 2 . Leg 4 | 2 2 . Wheel . | . . . Hover . | . . . Flight . | . . . Utility 4 | . 4 . Device . | . . . Storage 3 | . 3 . Processor 1 | . 1 . Hackware . | . . . Protection . | . . . Artifact . | . . . Weapon 5 | 1 3 1 Energy Gun . | . . . Energy Cannon . | . . . Ballistic Gun 4 | 1 2 1 Ballistic Cannon . | . . . Launcher . | . . . Special Weapon . | . . . Impact Weapon 1 | . 1 . Slashing Weapon . | . . . Piercing Weapon . | . . . Special Melee Weapon . | . . . Unidentified Prototypes . | . . . Parts Lost 3 | . 2 1 Power 2 | . 1 1 Propulsion 1 | . 1 . Utility . | . . . Weapon . | . . . Highest Loss Streak 2 | . 2 1 To Critical Strikes . | . . . Average Slot Usage (%) 85 | . 85 86 Engine 13 | . 13 13 Treads 12 | . 16 . Leg 15 | . 10 28 Storage 11 | . 10 14 Processor 10 | . 9 14 Ballistic Gun 14 | . 19 1 Impact Weapon 6 | . 4 14 Naked Turns . | . . . Heaviest Build 30 | 5 30 30 Greatest Support 46 | 20 46 20 Greatest Overweight (x) 1 | . 1 1 Average Overweight (x) . | . . 1 Largest Inventory Capacity 15 | 5 15 15 Average Capacity 12 | 5 12 15 Most Carried 9 | 4 9 9 Average Carried 6 | 2 5 8 Final Capacity 15 | 5 15 15 Final Carried 9 | 2 9 8 Class Distribution -------------------- 55% | Mutant 44% | Scavenger-Mutant Dominant Class ---------------- Mutant | -10/Materials Scavenger-Mutant | -10/Mines Resources | -11 -10 -10 ----------- Run | Yrd Mat Min Matter Collected 801 | 240 406 155 Remotely . | . . . Salvage Created 478 | . 432 46 Parts 31 | . 31 . Haulers Intercepted . | . . . Recyclers Shooed . | . . . Parts Field Recycled . | . . . Retrieved Matter . | . . . Parts Self-Destructed . | . . . Prevented . | . . . Kills | -11 -10 -10 ------- Run | Yrd Mat Min Combat Hostiles Destroyed 14 | . 10 4 Melee 2 | . . 2 Guns 12 | . 10 2 Classes Destroyed 4 | . 3 1 Watcher 3 | . 3 . Swarmer 3 | . 3 . Grunt 7 | . 7 . Assembled 4 | . . 4 Best Kill Streak 3 | . 3 2 Combat Bots Only 2 | . 2 2 Max Kills in Single Turn 1 | . 1 1 Gunslinging . | . . . Exploded . | . . . Melee 1 | . . 1 Uniques/NPCs Destroyed . | . . . Combat | -11 -10 -10 -------- Run | Yrd Mat Min Hostile Shots Fired 114 | . 94 20 Missed 31 | . 25 6 Damage Taken 1079 | . 778 301 Core 264 | . 150 114 Absorbed by Shields . | . . . Regen/Repaired (Parts) 71 | . 71 . Core Remaining (%) 100 | 100 . . Volleys Fired 81 | . 66 15 Largest 2 | . 2 1 Hottest 46 | . 46 23 Shots Fired 109 | . 94 15 Gun 109 | . 94 15 Cannon . | . . . Launcher . | . . . Special . | . . . Kinetic 109 | . 94 15 Thermal . | . . . Explosive . | . . . Electromagnetic . | . . . Robot Hit Streak 7 | . 7 5 Robot Miss Streak 5 | . 5 5 Penetration Max . | . . . Secondary Targets 2 | . 2 . Max Gunslinging Chain 1 | . 1 . Shots Hit Robots 65 | . 54 11 Core Hits 23 | . 17 6 Critical Kills . | . . . Critical Parts Destroyed . | . . . Critical Strikes . | . . . Melee Attacks 5 | . 2 3 Impact 5 | . 2 3 Slashing . | . . . Piercing . | . . . Sneak Attacks . | . . . Combat Hostiles . | . . . Follow-up Attacks . | . . . Damage Inflicted 1050 | . 855 195 Guns 965 | . 825 140 Cannons . | . . . Explosions . | . . . Melee 85 | . 30 55 Ramming . | . . . Kinetic 965 | . 825 140 Thermal . | . . . Explosive . | . . . Electromagnetic . | . . . Impact 85 | . 30 55 Slashing . | . . . Piercing . | . . . Highest Corruption 3 | . . 3 Average Corruption 3 | . . 3 Corruption Purged . | . . . Corruption Blocked . | . . . Overload Shots . | . . . Overflow Damage 8 | . 8 . Projectiles . | . . . Explosions . | . . . Melee 8 | . 8 . Knockbacks 1 | . 1 . Impact 1 | . 1 . Kinetic . | . . . Secondary . | . . . Self-Inflicted Damage . | . . . Shots . | . . . Rammed . | . . . Targets Rammed . | . . . Kicked . | . . . Crushed . | . . . Highest Temperature 46 | . 46 6 Average Temperature 15 | . 16 3 Received Heat Transfer 381 | . 381 . Siege Activations . | . . . Robots Corrupted . | . . . Combat Hostiles . | . . . Parts Fried 2 | . 2 . Impact Corruptions 1 | . 1 . Robots Melted . | . . . Combat Hostiles . | . . . Parts Melted . | . . . Heat Transferred . | . . . Parts Sabotaged . | . . . Parts Stolen . | . . . Parts Stripped . | . . . Power Chain Reactions . | . . . Alert | -11 -10 -10 ------- Run | Yrd Mat Min Peak Influence 203 | . 203 42 Initial 12 | . . 12 Average 49 | . 62 18 Maximum Alert Level 1 | . 1 . Low Security (%) 90 | 100 86 100 Level 1 9 | . 13 . Level 2 . | . . . Level 3 . | . . . Level 4 . | . . . Level 5 . | . . . High Security . | . . . Max Security . | . . . Squads Dispatched 5 | . 5 . Investigation 3 | . 3 . Extermination . | . . . Reinforcement 2 | . 2 . Assault . | . . . Garrison . | . . . Intercept . | . . . Searches Triggered . | . . . Construction Impeded . | . . . Haulers Reinforced . | . . . Active Scanning Responses . | . . . Cargo Convoy Interrupts . | . . . Stealth | -11 -10 -10 --------- Run | Yrd Mat Min Distress Signals 2 | . 1 1 Communications Jammed . | . . . Distress Signals . | . . . Times Spotted 25 | . 18 7 Peak Tracking Total 4 | . 4 4 Tactical Retreats 1 | . 1 . Traps | -11 -10 -10 ------- Run | Yrd Mat Min Traps Triggered 2 | . 2 . Indirectly . | . . . Trap Hack Attempts . | . . . Triggered . | . . . Disarmed . | . . . Reprogrammed . | . . . Reused . | . . . Traps Extracted . | . . . Installed . | . . . Triggered . | . . . Machines | -11 -10 -10 ---------- Run | Yrd Mat Min Machines Disabled . | . . . Max in Single Turn . | . . . Machines Repaired . | . . . Machines Dismantled . | . . . Machines Sabotaged . | . . . Overloaded Fab Kills . | . . . Hacking | -11 -10 -10 --------- Run | Yrd Mat Min Machines Accessed 6 | . 6 . Terminals 5 | . 5 . Fabricators . | . . . Repair Stations 1 | . 1 . Recycling Units . | . . . Scanalyzers . | . . . Garrison Access . | . . . Total Hacks 22 | . 22 . Successful 10 | . 10 . Failed 12 | . 12 . Catastrophic 1 | . 1 . Database Lockouts . | . . . Manual . | . . . Terminals 19 | . 19 . Fabricators . | . . . Repair Stations 3 | . 3 . Recycling Units . | . . . Scanalyzers . | . . . Garrison Access . | . . . Terminal Hacks 8 | . 8 . Record 3 | . 3 . Branch Access Points 1 | . 1 . Alert Level 2 | . 2 . Locate Traps 1 | . 1 . Hauler Manifests 1 | . 1 . Fabricator Hacks . | . . . Repair Station Hacks 2 | . 2 . Scan Component 1 | . 1 . Repair 1 | . 1 . Recycling Unit Hacks . | . . . Scanalyzer . | . . . Garrison Access Hacks . | . . . Unauthorized Hacks . | . . . Terminals . | . . . Fabricators . | . . . Repair Stations . | . . . Recycling Units . | . . . Scanalyzers . | . . . Garrison Access . | . . . Data Cores Recovered . | . . . Used . | . . . Hacking Detections 5 | . 5 . Full Trace Events 2 | . 2 . Feedback Events . | . . . Feedback Blocked . | . . . Robot Schematics Acquired . | . . . Robots Built . | . . . Authchips . | . . . Time . | . . . Total Robot Build Rating . | . . . Part Schematics Acquired . | . . . Parts Built . | . . . Authchips . | . . . Time . | . . . Total Part Build Rating . | . . . Parts Repaired 1 | . 1 . Time 32 | . 32 . Parts Recycled . | . . . Recycled Matter . | . . . Retrieved Matter . | . . . Retrieved Components . | . . . Parts Scanalyzed . | . . . Part Schematics Acquired . | . . . Parts Damaged . | . . . Bothacking | -11 -10 -10 ------------ Run | Yrd Mat Min Used RIF Installer . | . . . Robots Hacked . | . . . Non-combat . | . . . Combat . | . . . Robot Hacks Applied . | . . . Relay Couplers Released . | . . . Fabnet Peak Effective % . | . . . Robots Rewired . | . . . Allies Hacked . | . . . Hacks Repelled . | . . . Allies | -11 -10 -10 -------- Run | Yrd Mat Min Total Allies . | . . . Largest Group . | . . . Highest-Rated Group . | . . . Highest-Rated Ally . | . . . Total Orders . | . . . Ally Attacks . | . . . Total Damage . | . . . Kills . | . . . Allies Corrupted . | . . . Allies Melted . | . . . Intel | -11 -10 -10 ------- Run | Yrd Mat Min Robot Analysis Total . | . . . Derelict Logs Recovered 1 | . . 1 Drone Launches . | . . . Drone Recoveries . | . . . Exploration | -11 -10 -10 ------------- Run | Yrd Mat Min Turns Passed 1573 | 42 1110 421 Spaces Moved 745 | 32 510 203 Core 8 | 8 . . Treads 336 | . 336 . Legs 401 | 24 174 203 Wheels . | . . . Hover . | . . . Flight . | . . . Fastest Speed 50 | 50 120 190 Average Speed 167 | 102 162 190 Slowest Speed 240 | 120 240 190 Overloaded Moves . | . . . Propulsion Burnouts . | . . . Robots Hopped . | . . . Cave-ins Triggered . | . . . Exploration Rate (%) 39 | 4 76 39 Regions Visited 2 Branch Regions 1 Pre-discovered Areas 1 | . . 1 Known Exits Taken 1 | . 1 . Unknown Exits Taken 1 | 1 . . Scrap Searched . | . . . Spaces Dug . | . . . Terrain Destroyed . | . . . Melee . | . . . Projectile . | . . . AOE . | . . . Terrain Rammed . | . . . Walls Destroyed . | . . . Machines Disabled . | . . . Actions | -11 -10 -10 --------- Run | Yrd Mat Min Total 971 | 41 708 222 Wait 89 | . 89 . Move 743 | 31 509 203 Hop . | . . . Pick Up 27 | 6 21 . Fast Attach . | . . . Attach 10 | 4 5 1 Detach . | . . . Swap 7 | . 7 . Drop 9 | . 9 . Fire 81 | . 66 15 Melee 5 | . 2 3 Ram . | . . . Kick . | . . . Crush . | . . . Escape Stasis . | . . . Rewire . | . . . Trap . | . . . Miscellaneous . | . . . Route ------- -11/Scrapyard -10/Materials (discovered 4 exits: [*Mat x3] / *Min) -10/Mines History --------- Turn | Location | Event 8 | -11/Scrapyard | Discovered new exit (range 15) 43 | -11/Scrapyard | Entered Materials 307 | -10/Materials | Discovered new exit (range 3) 308 | -10/Materials | Build established: Mutant 719 | -10/Materials | Discovered new exit (range 4) 728 | -10/Materials | Discovered new exit (range 18) 811 | -10/Materials | Core integrity fell below 50% 974 | -10/Materials | Repaired Autogun 1073 | -10/Materials | Discovered new exit (range 10) 1100 | -10/Materials | Identified exit to Mines 1153 | -10/Materials | Entered Mines 1174 | -10/Mines | Build established: Scavenger-Mutant 1272 | -10/Mines | Assembled infested the area 1277 | -10/Mines | Assisted by a Guerilla fighting off Assembled 1462 | -10/Mines | Learned location of Storage (-8) 1559 | -10/Mines | Core integrity fell below 20% 1574 | -10/Mines | Destroyed by as-33478 with Assembled Heavy Rifle Last Messages --------------- Acquired 2 matter. Acquired derelict log, extracted data. World map updated: -8/Storage. T-07 Excavator is excavating. as-39337 destroyed. Acquired 8 matter. Acquired 29 matter. as-24582 destroyed. as-44016 destroyed. U-05 Engineer builds a Wall. U-05 Engineer lays Concrete. U-05 Engineer builds a Wall. U-05 Engineer lays Concrete. U-05 Engineer builds a Wall. U-05 Engineer lays Concrete. Ion Engine destroyed. System corrupted by crushing effect (+3). Knocked back. U-05 Engineer lays Concrete. as-22115 destroyed. Map ----- +----------------------------------------------------+ | ?????????#### #??????????????????????????????????? | | ????????????# #?????#####????????????????????????? | | ????????????# #?????# ?????????????????????????? | | ????????????# ####### #??????????????????????????? | | ????????????# ##### """ ""???????????????? | | ????????????######### """ ""???????????????? | | ?????#####??????????# ##### """ ""???????????????? | | ????## ##?????????# #??????????????????????????? | | ????# #?????????# #??????????????????????????? | | ????# #?????????# #??????????????????????????? | | ????# ##?????????# #??????????????????????????? | | ????## #????####### #??????????????????????????? | | ????## #????# #??????????????????????????? | | ???## #????# ############?????????????????????? | | ???# ##???# #?# #?????????????????????? | | ???# #???# ### #?????????????????????? | | ???# #???# """ #?????????????????????? | | ???## #???# ### """ #?????????????????????? | | ????### #???# #?# """ #######%#?????????????? | | ??????## ##??# #?# ! !%| =%#?????????????? | | ???????## ##?# ### [ ###???????????????????? | | ????????# ### #### =####????????##???????????? | | ????????## #?#! #???????## ##??????????? | | ?????????## #?# #????## #??????????? | | ??????????## ##?# ##### #??????????? | | ???????????### ##??# @ a #??????????? | | ?????????????#####???# #### #???????????? | | ?????????????????????# #??# % #???????????? | | ??????????###????????# #?? %!*=????????? | | ???????#### #???????# #??# #% !!*=%k%*% ????? | | ??????## #?????## ##?# ] ! !!|=*=!###?????? | | ?????## ###### " #### !%] %% ### #?????? | | ?????# =## #??#?# ## ##?????????? | | ????????# #?????% #??##??????????? | | ????????## * ##?????? #??????????????? | | ?????????####### # ##??????? #??????????????? | | ???????????????# ## ##?????????#??????????????? | | ???????????????# ######?????????????????????????? | | ???????????????# ###????????????????????????????? | | ???????????????# #????????????????????????????? | | ???????????????# #????????????????????????????? | | ???????????????### #????????????????????????????? | | ?????????????????# #????????????????????????????? | | ?????????????????# #????????????????????????????? | | ?????????????????# #????????????????????????????? | | ???????????????### #????????????????????????????? | | ?????????????### #????????????????????????????? | | ?????????????# #????????????????????????????? | | ?????????????# ####????????????????????????????? | | ?????????????# ##???????????????????????????????? | +----------------------------------------------------+ Best States ------------- Heat Dissipation 25 Energy Generation 10 Energy Capacity 250 Matter Stores 300 Matter Capacity 300 Sight Range 18 Terrain Scan Density 10 Evasion (%) 55 Recoil Reduction 2 Item Schematics ----------------- None Robot Schematics ------------------ None Fabricated ------------ Nothing Alien Tech Used ----------------- None Achievements -------------- None Challenges ------------ None Game ------ Seed FieldVisualScanner Manual? 0 Play Time 00:17:16 Cumulative 3.5 hours Start 2024.04.03 @ 13:37:35 End 2024.04.03 @ 14:30:47 Sessions 1 Manual Loads 0 Difficulty Rogue Special Mode None Game No. 8 Rogue 8 Adventurer 0 Explorer 0 Win Type - Total 0 Types 0/0/0/0/0/0/0/0/0 Lore% 3 Gallery% 9 Achievement% 10 Wizard Run 0 Options --------- Layout 1 ASCII 0 Keyboard 0 Movement Mouse Keybinds 0 Fullscreen 1 Font 24/Smallcaps Map View 50x35 Zoom Use 0% Tactical HUD 0 Map Filters NONE Filters NONE Steam 1 RUN: 97495117-2ed0-4fb3-9a02-c6fc38085566